lending/lending_fUSD_20241120
["ID","MTS","AMOUNT","RATE_DAILY","PERIOD"]
[342771640,1732131060935,-3069.71,0.00044084,6]
[342771641,1732131061045,-150.0,0.00044124,2]
[342771642,1732131061054,-1054.0,0.00044184,30]
[342771643,1732131061063,-1500.0,0.00044208,120]
[342771644,1732131061074,-1000.0,0.00044384,120]
[342771645,1732131061087,-599.67,0.00044384,120]
[342771646,1732131061096,-3000.0,0.00044444,60]
[342771647,1732131061105,-2500.0,0.00044482,120]
[342771648,1732131061114,-1300.0,0.00044482,120]
[342771649,1732131061125,-1500.0,0.00044482,120]
[342771650,1732131061134,-500.0,0.00044482,120]
[342771651,1732131061143,-50171.30481022,0.0004462,2]
[342771652,1732131061152,-360.4743011,0.0004489,120]
[342771653,1732131061164,-10779.11230813,0.000449,30]
[342771654,1732131061174,-150.0,0.00044989,2]
[342771655,1732131061183,-50000.0,0.00045,25]
[342771656,1732131061192,-50000.0,0.00045,35]
[342771657,1732131061203,-50000.0,0.00045,45]
[342771658,1732131061212,-800.0,0.00045,120]
[342771659,1732131061221,-48019.94871934,0.00045,2]
[342771660,1732131061231,-289.28254477,0.00045,120]
[342771661,1732131061239,-163142.59972216,0.00045,120]
[342771662,1732131061249,-51497.72328401,0.00045,60]
[342771663,1732131061258,-235.72883779,0.00045,120]
[342771664,1732131061267,-300.0,0.00045,30]
[342771665,1732131061276,-2282.7516527,0.00045,14]
[342771666,1732131061286,-3700.0,0.00045,14]
[342771667,1732131061295,-35008.4661566,0.00045,120]
[342771668,1732131061304,-16063.23527708,0.00045,30]
[342771669,1732131061314,-1314.73029689,0.00045,7]
[342771670,1732131061325,-1091.31730325,0.00045,7]
[342771671,1732131061335,-255.77424344,0.00045,30]
[342771672,1732131061344,-39704.92383739,0.00045,120]
[342771673,1732131061353,-774.8659096,0.00045,120]
[342771674,1732131061363,-1000.0,0.00045,30]
[342771675,1732131061372,-1000.0,0.00045,30]
[342771676,1732131061382,-687.0,0.00045,30]
[342771677,1732131061390,-539.0,0.00045,20]
[342771678,1732131061401,-251632.09208009,0.00045,30]
[342771679,1732131061410,-9186.0,0.00045,60]
[342771680,1732131061420,-5000.0,0.00045,120]
[342771681,1732131061429,-150.0,0.00045,120]
[342771682,1732131061439,-150.0,0.00045,85]
[342771683,1732131061448,-450.0,0.00045,2]
[342771684,1732131061458,-450.0,0.00045,2]
[342771685,1732131061467,-33111.35301348,0.00045,120]
[342771686,1732131061476,-2500.0,0.0004503,120]
[342771687,1732131061486,-1300.0,0.0004503,120]
[342771688,1732131061495,-1500.0,0.0004503,120]
[342771689,1732131061504,-500.0,0.0004503,120]
[342771690,1732131061514,-7975.2,0.00045069,117]
[342771691,1732131061524,-1926.0,0.00045115,2]
[342771692,1732131061533,-1260.0,0.00045115,2]
[342771693,1732131061542,-920.0,0.00045115,2]
[342771694,1732131061551,-3747.0,0.00045115,2]
[342771695,1732131061561,-815.0,0.00045115,2]
[342771696,1732131061572,-3514.0,0.00045115,2]
[342771697,1732131061581,-1256.0,0.00045115,2]
[342771698,1732131061591,-564.0,0.00045115,2]
[342771699,1732131061600,-150.0,0.00045115,2]
[342771700,1732131061610,-632.0,0.00045115,2]
[342771701,1732131061619,-1000.0,0.00045205,120]
[342771702,1732131061628,-500.0,0.00045288,120]
[342771703,1732131061637,-500.0,0.00045288,120]
[342771704,1732131061646,-443.154,0.0004542,120]
[342771705,1732131061656,-1629.33,0.0004556,2]
[342771706,1732131061665,-2500.0,0.00045578,120]
[342771707,1732131061674,-1300.0,0.00045578,120]
[342771708,1732131061683,-1500.0,0.00045578,120]
[342771709,1732131061692,-500.0,0.00045578,120]
[342771710,1732131061701,-150.0,0.00045589,10]
[342771711,1732131061710,-73110.89513356,0.000456,120]
[342771712,1732131061719,-3973.06350244,0.000456,30]
[342771713,1732131061728,-37410.53433516,0.000457,120]
[342771714,1732131061737,-2169.02309074,0.000457,120]
[342771715,1732131061747,-205.0,0.0004582,30]
[342771716,1732131061757,-150.0,0.00045854,2]
[342771717,1732131061766,-968.98,0.0004589,30]
[342771718,1732131061776,-968.98,0.0004589,30]
[342771719,1732131061785,-968.98,0.0004589,30]
[342771720,1732131061794,-968.98,0.0004589,30]
[342771721,1732131061803,-968.98,0.0004589,30]
[342771722,1732131061812,-251.34,0.0004589,30]
[342771723,1732131061823,-50000.0,0.00046,26]
[342771724,1732131061832,-50000.0,0.00046,36]
[342771725,1732131061841,-50000.0,0.00046,46]
[342771726,1732131061850,-500.0,0.00046,120]
[342771727,1732131061859,-150.0,0.00046,96]
[342771728,1732131061869,-2721.34675422,0.00046,120]
[342771729,1732131061878,-1087.93967491,0.00046,120]
[342771730,1732131061888,-1000.0,0.00046,30]
[342771731,1732131061897,-3027.75752202,0.00046,30]
[342771732,1732131061907,-1317.94535972,0.00046,30]
[342771733,1732131061915,-1000.0,0.00046027,120]
[342771734,1732131061925,-2500.0,0.00046126,120]
[342771735,1732131061934,-1300.0,0.00046126,120]
[342771736,1732131061944,-1500.0,0.00046126,120]
[342771737,1732131061953,-500.0,0.00046126,120]
[342771738,1732131061963,-160.864485,0.00046395,120]
[342771739,1732131061972,-74100.42721751,0.000465,120]
[342771740,1732131061981,-1054.0,0.00046509,30]
[342771741,1732131061991,-4000.0,0.00046575,30]
[342771742,1732131062000,-200.0,0.000466,2]
[342771743,1732131062009,-500.0,0.000466,2]
[342771744,1732131062019,-2500.0,0.00046674,120]
[342771745,1732131062028,-1300.0,0.00046674,120]
[342771746,1732131062037,-1500.0,0.00046674,120]
[342771747,1732131062046,-500.0,0.00046674,120]
[342771748,1732131062056,-150.0,0.0004672,2]
[342771749,1732131062066,-1000.0,0.00046849,120]
[342771750,1732131062077,-39022.25448512,0.000469,2]
[342771751,1732131062089,-50000.0,0.00047,27]
[342771752,1732131062099,-50000.0,0.00047,37]
[342771753,1732131062108,-50000.0,0.00047,47]
[342771754,1732131062117,-2229.83833694,0.00047,120]
[342771755,1732131062128,-315851.573043,0.00047,30]
[342771756,1732131062137,-809266.90831419,0.00047,10]
[342771757,1732131062147,-200.0,0.00047,108]
[342771758,1732131062160,-500.0,0.00047,2]
[342771759,1732131062170,-500.0,0.00047,2]
[342771760,1732131062179,-151.0,0.00047096,120]
[342771761,1732131062189,-8642.4,0.00047103,117]
[342771762,1732131062198,-2500.0,0.00047222,120]
[342771763,1732131062208,-1300.0,0.00047222,120]
[342771764,1732131062218,-1500.0,0.00047222,120]
[342771765,1732131062228,-500.0,0.00047222,120]
[342771766,1732131062237,-402.46,0.00047354,2]
[342771767,1732131062248,-190.91,0.00047354,2]
[342771768,1732131062257,-529.33,0.00047354,2]
[342771769,1732131062267,-500.0,0.00047388,120]
[342771770,1732131062276,-22734.36211628,0.000475,100]
[342771771,1732131062285,-150.0,0.00047585,2]
[342771772,1732131062294,-113043.58445887,0.000476,30]
[342771773,1732131062304,-27312.52773455,0.000476,30]
[342771774,1732131062314,-1000.0,0.00047671,120]
[342771775,1732131062326,-1629.33,0.00047757,2]
[342771776,1732131062335,-2500.0,0.0004777,120]
[342771777,1732131062345,-1300.0,0.0004777,120]
[342771778,1732131062355,-1500.0,0.0004777,120]
[342771779,1732131062365,-422.96746244,0.0004777,120]
[342771780,1732131062374,-166.82955001,0.000479,23]
[342771781,1732131062384,-5000.0,0.00047945,70]
[342771782,1732131062393,-443.134,0.0004795,120]
[342771783,1732131062403,-50000.0,0.00048,28]
[342771784,1732131062412,-50000.0,0.00048,38]
[342771785,1732131062421,-50000.0,0.00048,48]
[342771786,1732131062431,-351478.53368587,0.00048,60]
[342771787,1732131062440,-145645.38426998,0.00048,61]
[342771788,1732131062450,-500.0,0.00048,120]
[342771789,1732131062459,-261.8701178,0.00048,14]
[342771790,1732131062469,-2721.34675421,0.00048,120]
[342771791,1732131062478,-1087.9396749,0.00048,120]
[342771792,1732131062488,-150.0048865,0.00048,120]
[342771793,1732131062498,-151.0,0.00048,14]
[342771794,1732131062507,-676.2612615,0.00048,49]
[342771795,1732131062517,-151.0,0.00048,14]
[342771796,1732131062527,-151.0,0.00048,14]
[342771797,1732131062537,-151.0,0.00048,14]
[342771798,1732131062547,-151.0,0.00048,14]
[342771799,1732131062556,-151.0,0.00048,14]
[342771800,1732131062566,-151.0,0.00048,14]
[342771801,1732131062580,-22006.3062722,0.00048,120]
[342771802,1732131062595,-44028.08567478,0.00048,120]
[342771803,1732131062604,-1926.0,0.00048115,2]
[342771804,1732131062613,-1260.0,0.00048115,2]
[342771805,1732131062622,-920.0,0.00048115,2]
[342771806,1732131062631,-3747.0,0.00048115,2]
[342771807,1732131062640,-815.0,0.00048115,2]
[342771808,1732131062649,-3514.0,0.00048115,2]
[342771809,1732131062659,-1256.0,0.00048115,2]
[342771810,1732131062668,-564.0,0.00048115,2]
[342771811,1732131062677,-150.0,0.00048115,2]
[342771812,1732131062686,-632.0,0.00048115,2]
[342771813,1732131062695,-2500.0,0.00048318,120]
[342771814,1732131062704,-1300.0,0.00048318,120]
[342771815,1732131062713,-1500.0,0.00048318,120]
[342771816,1732131062722,-152.0,0.00048416,3]
[342771817,1732131062731,-205.0,0.0004842,30]
[342771818,1732131062740,-150.0,0.0004845,2]
[342771819,1732131062750,-1000.0,0.00048493,120]
[342771820,1732131062760,-8469.19395079,0.000485,30]
[342771821,1732131062769,-100000.000001,0.00048655,30]
[342771822,1732131062779,-2539.97124953,0.000487,120]
[342771823,1732131062788,-1457.06688216,0.000487,120]
[342771824,1732131062797,-50000.0,0.000488,120]
[342771825,1732131062807,-15363.15445065,0.000488,7]
[342771826,1732131062816,-131897.11839929,0.0004883,120]
[342771827,1732131062830,-1698.09948512,0.00048866,120]
[342771828,1732131062840,-746.4390396,0.00048866,120]
[342771829,1732131062849,-1500.0,0.00048866,120]
[342771830,1732131062858,-151.0,0.00048879,14]
[342771831,1732131062867,-151.085791,0.00048879,14]
[342771832,1732131062877,-709479.86131673,0.0004888,30]
[342771833,1732131062886,-151.0,0.0004888,14]
[342771834,1732131062895,-151.191839,0.0004888,14]
[342771835,1732131062904,-151.0,0.0004888,14]
[342771836,1732131062913,-330.340525,0.0004888,14]
[342771837,1732131062922,-151.0,0.0004888,14]
[342771838,1732131062931,-151.0,0.0004888,7]
[342771839,1732131062941,-330.340525,0.0004888,14]
[342771840,1732131062950,-151.0,0.0004888,14]
[342771841,1732131062959,-151.0,0.0004888,14]
[342771842,1732131062968,-151.0,0.0004888,14]
[342771843,1732131062977,-211.378498,0.0004888,14]
[342771844,1732131062986,-211.378498,0.0004888,14]
[342771845,1732131062995,-462.047269,0.0004888,14]
[342771846,1732131063004,-163.454904,0.0004888,14]
[342771847,1732131063013,-462.047269,0.0004888,14]
[342771848,1732131063023,-927.64,0.0004888,14]
[342771849,1732131063032,-927.64,0.0004888,14]
[342771850,1732131063042,-151.0,0.0004888,14]
[342771851,1732131063051,-193.929658,0.0004888,2]
[342771852,1732131063060,-151.066857,0.0004888,14]
[342771853,1732131063069,-151.0,0.0004888,14]
[342771854,1732131063086,-168.156457,0.0004888,14]
[342771855,1732131063096,-151.0,0.0004888,14]
[342771856,1732131063105,-1054.0,0.00048957,30]
[342771857,1732131063114,-1000.0,0.00048978,60]
[342771858,1732131063125,-50000.0,0.00049,49]
[342771859,1732131063134,-50000.0,0.00049,39]
[342771860,1732131063144,-50000.0,0.00049,29]
[342771861,1732131063156,-1500.0,0.00049,120]
[342771862,1732131063165,-846.063423,0.00049,120]
[342771863,1732131063174,-46842.988444,0.00049,120]
[342771864,1732131063183,-9923.97337077,0.00049,5]
[342771865,1732131063193,-64901.82996377,0.00049,5]
[342771866,1732131063203,-98125.94737009,0.00049,33]
[342771867,1732131063212,-609967.19441452,0.00049,120]
[342771868,1732131063221,-900.0,0.00049,50]
[342771869,1732131063230,-2684.02254917,0.00049,5]
[342771870,1732131063240,-550.0,0.00049,2]
[342771871,1732131063250,-550.0,0.00049,2]
[342771872,1732131063260,-11000.0,0.00049,2]
[342771873,1732131063269,-151.0,0.00049,14]
[342771874,1732131063279,-151.0,0.00049,14]
[342771875,1732131063288,-165.363288,0.00049,14]
[342771876,1732131063298,-165.363288,0.00049,14]
[342771877,1732131063308,-151.0,0.00049,14]
[342771878,1732131063318,-151.0,0.00049,14]
[342771879,1732131063331,-151.0,0.00049,14]
[342771880,1732131063341,-9304.4,0.00049138,117]
[342771881,1732131063351,-250000.0,0.000493,120]
[342771882,1732131063360,-198.0,0.000493,37]
[342771883,1732131063370,-158.0,0.000493,59]
[342771884,1732131063380,-3328.54690487,0.00049315,16]
[342771885,1732131063390,-5000.0,0.00049315,70]
[342771886,1732131063400,-1370.70200548,0.00049315,120]
[342771887,1732131063409,-600.0,0.00049315,30]
[342771888,1732131063419,-600.0,0.00049315,30]
[342771889,1732131063429,-150.0,0.00049315,2]
[342771890,1732131063438,-8500.0,0.00049375,16]
[342771891,1732131063448,-8500.0,0.00049388,16]
[342771892,1732131063457,-8500.0,0.00049389,16]
[342771893,1732131063466,-8500.0,0.00049411,16]
[342771894,1732131063476,-287.41945067,0.00049414,120]
[342771895,1732131063485,-8500.0,0.00049419,16]
[342771896,1732131063495,-8500.0,0.00049428,16]
[342771897,1732131063504,-8500.0,0.00049428,16]
[342771898,1732131063514,-1346.017764,0.0004948,23]
[342771899,1732131063523,-300000.000001,0.000495,120]
[342771900,1732131063532,-151.0,0.000495,120]
[342771901,1732131063541,-151.0,0.000495,120]
[342771902,1732131063550,-151.0,0.000495,120]
[342771903,1732131063560,-151.0,0.000495,120]
[342771904,1732131063569,-151.0,0.000495,120]
[342771905,1732131063582,-151.0,0.000495,120]
[342771906,1732131063591,-151.0,0.000495,120]
[342771907,1732131063601,-151.0,0.000495,120]
[342771908,1732131063610,-1000.0,0.000495,23]
[342771909,1732131063619,-20052.12743982,0.000496,120]
[342771910,1732131063628,-34348.12858115,0.0004968,120]
[342771911,1732131063638,-11765.16757945,0.000498,120]
[342771912,1732131063647,-113776.87837852,0.000498,120]
[342771913,1732131063656,-28441.79083188,0.000498,30]
[342771914,1732131063665,-1201.79118521,0.000498,120]
[342771915,1732131063676,-761.7165479,0.000498,120]
[342771916,1732131063686,-572.44370096,0.000498,120]
[342771917,1732131063695,-499999.0,0.000498,120]
[342771918,1732131063705,-499999.0,0.000498,120]
[342771919,1732131063715,-499999.0,0.000498,120]
[342771920,1732131063725,-499999.0,0.000498,120]
[342771921,1732131063734,-54706.47312798,0.000498,120]
[342771922,1732131063744,-135713.37824332,0.000498,120]
[342771923,1732131063753,-499999.0,0.000498,120]
[342771924,1732131063762,-499999.0,0.000498,120]
[342771925,1732131063772,-151.0,0.000498,120]
[342771926,1732131063781,-151.0,0.000498,120]
[342771927,1732131063791,-151.0,0.000498,120]
[342771928,1732131063800,-151.0,0.000498,120]
[342771929,1732131063809,-499999.0,0.000498,120]
[342771930,1732131063818,-499999.0,0.000498,120]
[342771931,1732131063830,-151.0,0.000498,120]
[342771932,1732131063839,-151.0,0.000498,120]
[342771933,1732131063849,-210.156035,0.000498,120]
[342771934,1732131063858,-151.0,0.000498,120]
[342771935,1732131063868,-151.0,0.000498,120]
[342771936,1732131063877,-168.817428,0.000498,120]
[342771937,1732131063887,-151.0,0.000498,120]
[342771938,1732131063897,-151.0,0.000498,120]
[342771939,1732131063906,-151.0,0.000498,120]
[342771940,1732131063915,-157.8,0.000498,120]
[342771941,1732131063924,-151.376669,0.000498,120]
[342771942,1732131063934,-499999.0,0.000498,120]
[342771943,1732131063943,-499999.0,0.000498,120]
[342771944,1732131063953,-151.0,0.000498,120]
[342771945,1732131063962,-151.0,0.000498,120]
[342771946,1732131063972,-151.0,0.000498,120]
[342771947,1732131063981,-151.0,0.000498,120]
[342771948,1732131063991,-151.0,0.000498,120]
[342771949,1732131064000,-151.0,0.000498,120]
[342771950,1732131064010,-151.0,0.000498,120]
[342771951,1732131064020,-787.740271,0.000498,120]
[342771952,1732131064029,-787.740271,0.000498,120]
[342771953,1732131064039,-151.0,0.000498,120]
[342771954,1732131064048,-151.0,0.000498,120]
[342771955,1732131064058,-151.0,0.000498,120]
[342771956,1732131064068,-151.0,0.000498,120]
[342771957,1732131064082,-151.016537,0.000498,120]
[342771958,1732131064093,-151.0,0.000498,30]
[342771959,1732131064103,-151.0,0.000498,30]
[342771960,1732131064112,-151.0,0.000498,120]
[342771961,1732131064123,-151.0,0.000498,120]
[342771962,1732131064133,-151.0,0.000498,120]
[342771963,1732131064143,-151.0,0.000498,120]
[342771964,1732131064152,-151.0,0.000498,120]
[342771965,1732131064164,-151.0,0.000498,120]
[342771966,1732131064175,-151.0,0.000498,120]
[342771967,1732131064184,-172.69894,0.000498,120]
[342771968,1732131064194,-151.0,0.000498,120]
[342771969,1732131064203,-172.69894,0.000498,120]
[342771970,1732131064213,-407.630963,0.000498,120]
[342771971,1732131064223,-151.0,0.000498,120]
[342771972,1732131064233,-407.630963,0.000498,120]
[342771973,1732131064242,-151.0,0.000498,120]
[342771974,1732131064251,-151.0,0.000498,120]
[342771975,1732131064261,-151.0,0.000498,120]
[342771976,1732131064271,-151.0,0.000498,120]
[342771977,1732131064282,-151.0,0.000498,120]
[342771978,1732131064291,-220.716732,0.000498,120]
[342771979,1732131064302,-220.716732,0.000498,120]
[342771980,1732131064314,-151.0,0.000498,7]
[342771981,1732131064327,-151.0,0.000498,7]
[342771982,1732131064339,-151.0,0.000498,120]
[342771983,1732131064350,-151.0,0.000498,120]
[342771984,1732131064361,-151.0,0.000498,120]
[342771985,1732131064372,-151.0,0.000498,110]
[342771986,1732131064381,-151.016189,0.000498,120]
[342771987,1732131064392,-499999.0,0.000498,120]
[342771988,1732131064402,-499999.0,0.000498,120]
[342771989,1732131064412,-151.0,0.000498,120]
[342771990,1732131064422,-151.0,0.000498,120]
[342771991,1732131064432,-231.758115,0.000498,120]
[342771992,1732131064442,-231.758115,0.000498,120]
[342771993,1732131064452,-151.0,0.000498,120]
[342771994,1732131064462,-151.0,0.000498,120]
[342771995,1732131064473,-785.175163,0.000498,120]
[342771996,1732131064483,-151.0,0.000498,120]
[342771997,1732131064493,-151.0,0.000498,120]
[342771998,1732131064504,-785.175163,0.000498,120]
[342771999,1732131064514,-151.0,0.000498,120]
[342772000,1732131064525,-2204.877046,0.000498,120]
[342772001,1732131064535,-151.146848,0.000498,120]
[342772002,1732131064545,-2204.877046,0.000498,120]
[342772003,1732131064555,-151.0,0.000498,120]
[342772004,1732131064565,-151.042971,0.000498,120]
[342772005,1732131064574,-151.0,0.000498,120]
[342772006,1732131064587,-151.0,0.000498,120]
[342772007,1732131064598,-167.511591,0.000498,120]
[342772008,1732131064608,-167.511591,0.000498,120]
[342772009,1732131064618,-167.511591,0.000498,120]
[342772010,1732131064628,-167.511591,0.000498,120]
[342772011,1732131064639,-151.0,0.000498,120]
[342772012,1732131064649,-151.0,0.000498,120]
[342772013,1732131064659,-436.917262,0.000498,120]
[342772014,1732131064669,-151.0,0.000498,120]
[342772015,1732131064679,-225.610282,0.000498,120]
[342772016,1732131064689,-436.917262,0.000498,120]
[342772017,1732131064698,-151.0,0.000498,120]
[342772018,1732131064708,-151.0,0.000498,120]
[342772019,1732131064717,-151.0,0.000498,120]
[342772020,1732131064727,-151.0,0.000498,120]
[342772021,1732131064736,-5450.382091,0.000498,120]
[342772022,1732131064746,-151.0,0.000498,120]
[342772023,1732131064756,-151.0,0.000498,120]
[342772024,1732131064766,-5450.382091,0.000498,120]
[342772025,1732131064776,-151.0,0.000498,120]
[342772026,1732131064786,-260.51602,0.000498,120]
[342772027,1732131064797,-163.528953,0.000498,120]
[342772028,1732131064807,-163.528953,0.000498,120]
[342772029,1732131064816,-163.528953,0.000498,120]
[342772030,1732131064827,-163.528953,0.000498,120]
[342772031,1732131064837,-151.0,0.000498,120]
[342772032,1732131064847,-151.0,0.000498,120]
[342772033,1732131064857,-151.0,0.000498,120]
[342772034,1732131064867,-151.0,0.000498,120]
[342772035,1732131064877,-151.0,0.000498,120]
[342772036,1732131064887,-151.0,0.000498,120]
[342772037,1732131064898,-294.059268,0.000498,120]
[342772038,1732131064909,-510.955047,0.000498,120]
[342772039,1732131064919,-510.955047,0.000498,120]
[342772040,1732131064929,-151.0,0.000498,120]
[342772041,1732131064939,-151.406482,0.000498,120]
[342772042,1732131064949,-510.955047,0.000498,120]
[342772043,1732131064959,-510.955047,0.000498,120]
[342772044,1732131064970,-151.0,0.000498,120]
[342772045,1732131064980,-151.0,0.000498,120]
[342772046,1732131064990,-151.0,0.000498,120]
[342772047,1732131065000,-151.0,0.000498,120]
[342772048,1732131065011,-151.0,0.000498,120]
[342772049,1732131065021,-151.0,0.000498,120]
[342772050,1732131065031,-151.0,0.000498,120]
[342772051,1732131065041,-151.123832,0.000498,120]
[342772052,1732131065050,-151.0,0.000498,120]
[342772053,1732131065060,-151.0,0.000498,120]
[342772054,1732131065071,-151.0,0.000498,120]
[342772055,1732131065089,-151.0,0.000498,120]
[342772056,1732131065100,-151.0,0.000498,120]
[342772057,1732131065110,-151.0,0.000498,120]
[342772058,1732131065121,-151.0,0.000498,120]
[342772059,1732131065131,-151.0,0.000498,120]
[342772060,1732131065141,-263.486193,0.000498,120]
[342772061,1732131065151,-263.486193,0.000498,120]
[342772062,1732131065163,-151.0,0.000498,120]
[342772063,1732131065173,-151.0,0.000498,120]
[342772064,1732131065182,-263.486193,0.000498,120]
[342772065,1732131065193,-263.486193,0.000498,120]
[342772066,1732131065203,-151.0,0.000498,120]
[342772067,1732131065213,-151.0,0.000498,120]
[342772068,1732131065223,-151.0,0.000498,120]
[342772069,1732131065234,-182.841665,0.000498,120]
[342772070,1732131065245,-151.07262,0.000498,120]
[342772071,1732131065255,-172.234371,0.000498,120]
[342772072,1732131065266,-260.919056,0.000498,120]
[342772073,1732131065276,-260.919056,0.000498,120]
[342772074,1732131065288,-260.919056,0.000498,120]
[342772075,1732131065299,-260.919056,0.000498,120]
[342772076,1732131065310,-204.683254,0.000498,120]
[342772077,1732131065322,-204.683254,0.000498,120]
[342772078,1732131065336,-204.683254,0.000498,120]
[342772079,1732131065345,-204.683254,0.000498,120]
[342772080,1732131065356,-196.871904,0.000498,120]
[342772081,1732131065366,-196.871904,0.000498,120]
[342772082,1732131065376,-151.0,0.000498,120]
[342772083,1732131065386,-151.0,0.000498,120]
[342772084,1732131065395,-196.871904,0.000498,120]
[342772085,1732131065405,-196.871904,0.000498,120]
[342772086,1732131065415,-151.0,0.000498,120]
[342772087,1732131065425,-151.0,0.000498,120]
[342772088,1732131065436,-151.0,0.000498,120]
[342772089,1732131065447,-151.0,0.000498,120]
[342772090,1732131065457,-151.0,0.000498,120]
[342772091,1732131065467,-201.639152,0.000498,120]
[342772092,1732131065477,-151.0,0.000498,120]
[342772093,1732131065487,-236.430937,0.000498,120]
[342772094,1732131065498,-151.0,0.000498,120]
[342772095,1732131065509,-151.0,0.000498,120]
[342772096,1732131065519,-151.0,0.000498,120]
[342772097,1732131065529,-151.400595,0.000498,120]
[342772098,1732131065539,-165.363288,0.000498,120]
[342772099,1732131065549,-165.363288,0.000498,120]
[342772100,1732131065559,-165.363288,0.000498,120]
[342772101,1732131065569,-165.363288,0.000498,120]
[342772102,1732131065582,-151.0,0.000498,120]
[342772103,1732131065592,-151.0,0.000498,120]
[342772104,1732131065602,-151.0,0.000498,120]
[342772105,1732131065612,-151.0,0.000498,120]
[342772106,1732131065622,-151.0,0.000498,120]
[342772107,1732131065632,-151.0,0.000498,120]
[342772108,1732131065642,-330.340525,0.000498,120]
[342772109,1732131065652,-330.340525,0.000498,120]
[342772110,1732131065662,-151.0,0.000498,120]
[342772111,1732131065671,-151.0,0.000498,120]
[342772112,1732131065682,-151.0,0.000498,7]
[342772113,1732131065692,-151.0,0.000498,7]
[342772114,1732131065702,-330.340525,0.000498,120]
[342772115,1732131065712,-330.340525,0.000498,120]
[342772116,1732131065722,-151.0,0.000498,120]
[342772117,1732131065732,-286.0,0.000498,120]
[342772118,1732131065741,-153.024183,0.000498,120]
[342772119,1732131065751,-151.0,0.000498,120]
[342772120,1732131065761,-151.0,0.000498,120]
[342772121,1732131065771,-211.378498,0.000498,120]
[342772122,1732131065780,-211.378498,0.000498,120]
[342772123,1732131065791,-211.378498,0.000498,120]
[342772124,1732131065801,-211.378498,0.000498,120]
[342772125,1732131065812,-462.047269,0.000498,120]
[342772126,1732131065823,-462.047269,0.000498,120]
[342772127,1732131065840,-462.047269,0.000498,120]
[342772128,1732131065850,-462.047269,0.000498,120]
[342772129,1732131065860,-927.64,0.000498,120]
[342772130,1732131065870,-927.64,0.000498,120]
[342772131,1732131065880,-927.64,0.000498,120]
[342772132,1732131065891,-927.64,0.000498,120]
[342772133,1732131065902,-151.0,0.000498,120]
[342772134,1732131065912,-151.0,0.000498,120]
[342772135,1732131065922,-151.0,0.000498,120]
[342772136,1732131065933,-242.962794,0.000498,120]
[342772137,1732131065943,-151.0,0.000498,120]
[342772138,1732131065954,-151.0,0.000498,120]
[342772139,1732131065964,-30000.0,0.000499,2]